Cogmind - Beta 14 @@@ ROGUE MODE // 2024.08.14 @ 18:38:32 Player: Sionnis Result: Destroyed by VT-L1Z(j) with Overtuned Pulse Rifle Performance ------------- Evolutions (0) 0 Regions Visited (4) 800 Robots Destroyed (42) 210 Value Destroyed (1060) 1060 Prototype IDs (14) 280 Alien Tech Used (0) 0 Bonus (300) 300 TOTAL SCORE: 2650 Bonus ------- Registered with UFD 300 Cogmind --------- Core Integrity 0/250 Matter 205/300 Energy 88/100 System Corruption 0% Temperature Cool (12) Movement Hovering (300) Ox4 Location -9/Scraptown Parts ------- > --- POWER (1) -------- (None) > --- PROPULSION (2) --- Improved Hover Unit > --- UTILITY (2) ------ Large Storage Unit Medium Insulated Plating > --- WEAPON (2) ------- DM-GVY's Chainsaw > --- INVENTORY (15) --- Hover Unit Hover Unit Hover Unit Enhanced Optical Array Experimental Sensor Array Improved Propulsion Shielding Light Armor Plating Hacking Suite Improved System Restoration Module Siege Cannon Replica Datajack Power Maul Peak State ------------ > --- POWER ------------ Angular Momentum Engine > --- PROPULSION ------- Improved Hover Unit Improved Hover Unit > --- UTILITY ---------- Humpback > --- WEAPON ----------- Grenade Launcher Power Maul > --- INVENTORY -------- Wheel Subdweller Monowheel Hover Unit Hover Unit Hover Unit Hover Unit Hover Unit Large Storage Unit Enhanced Optical Array Experimental Sensor Array Signal Interpreter Transport Network Coupler Microactuators Improved Propulsion Shielding Improved Propulsion Shielding Light Armor Plating Medium Insulated Plating Hacking Suite A0-MCA's Component Scanner Improved System Restoration Module Trap Extractor Datajack CPS Tube Power Maul DRS Beacon [Rating: 23] Favorites ----------- Power Subdweller Power Source Engine Subdweller Power Source Propulsion Light Treads Treads Light Treads Wheel Wheel Hover Unit Improved Hover Unit Utility Humpback Storage Humpback Protection Light Armor Plating Weapon Assault Rifle Energy Gun Subdweller Laser Energy Cannon Beam Cannon Ballistic Gun Assault Rifle Ballistic Cannon Light Cannon Launcher Grenade Launcher Impact Weapon Power Maul Slashing Weapon DM-GVY's Chainsaw Special Melee Weapon Datajack Build | -11 -10 -10 -9 -9 ------- Run | Yrd Mat Sub Rec Scr Slots Evolved . | . . . . . Power . | . . . . . Propulsion . | . . . . . Utility . | . . . . . Weapon . | . . . . . Parts Attached 42 | 6 10 8 3 15 Power 5 | 1 1 1 . 2 Engine 5 | 1 1 1 . 2 Core . | . . . . . Reactor . | . . . . . Propulsion 8 | 2 1 . 2 3 Treads 4 | 2 1 . 1 . Leg . | . . . . . Wheel 2 | . . . 1 1 Hover 2 | . . . . 2 Flight . | . . . . . Utility 12 | 1 5 1 . 5 Device . | . . . . . Storage 6 | 1 3 1 . 1 Processor . | . . . . . Hackware . | . . . . . Protection 6 | . 2 . . 4 Artifact . | . . . . . Weapon 17 | 2 3 6 1 5 Energy Gun 1 | . . 1 . . Energy Cannon 1 | . 1 . . . Ballistic Gun 5 | 2 1 2 . . Ballistic Cannon 2 | . 1 1 . . Launcher 4 | . . 2 . 2 Special Weapon . | . . . . . Impact Weapon 2 | . . . . 2 Slashing Weapon 1 | . . . . 1 Piercing Weapon . | . . . . . Special Melee Weapon 1 | . . . 1 . Unidentified Prototypes . | . . . . . Parts Lost 6 | . 2 . 1 3 Power . | . . . . . Propulsion 3 | . 1 . 1 1 Utility 1 | . . . . 1 Weapon 2 | . 1 . . 1 Highest Loss Streak 3 | . 1 . 1 3 To Critical Strikes . | . . . . . Average Slot Usage (%) 88 | . 98 92 81 78 Engine 13 | . 14 14 14 13 Treads 19 | . 28 28 21 5 Wheel 7 | . . . 4 20 Storage 13 | . 14 14 14 13 Protection 5 | . 13 6 . . Energy Gun 1 | . . 1 12 . Energy Cannon 5 | . 4 12 . . Ballistic Gun 6 | . 12 7 12 . Ballistic Cannon 4 | . 11 5 . . Launcher 2 | . . 1 . 6 Impact Weapon 2 | . . . . 7 Special Melee Weapon 2 | . . . 1 7 Peak Build Rating 23 | 6 9 12 12 23 Average Rating 11 | 4 7 10 11 15 On Entrance 7 | . 6 9 12 10 Naked Turns . | . . . . . Heaviest Build 219 | 14 54 211 211 219 Greatest Support 40 | 40 40 40 40 30 Greatest Overweight (x) 21 | . 1 5 21 20 Average Overweight (x) 5 | . . 2 11 9 Largest Inventory Capacity 35 | 8 20 35 35 35 Average Capacity 28 | 7 18 27 35 33 Most Carried 33 | 2 20 29 30 33 Average Carried 21 | 1 14 22 29 23 Final Capacity 35 | 8 20 35 35 15 Final Carried 30 | 2 20 29 30 14 Class Distribution -------------------- 60% | Hauler-Mutant 39% | Mutant Dominant Class ---------------- Mutant | -10/Materials Hauler-Mutant | -10/Subcaves Hauler-Mutant | -9/Recycling Hauler-Mutant | -9/Scraptown Resources | -11 -10 -10 -9 -9 ----------- Run | Yrd Mat Sub Rec Scr Matter Collected 1191 | 239 628 191 83 50 Remotely . | . . . . . Salvage Created 1280 | . 871 154 255 . Parts 90 | . 61 15 14 . Haulers Intercepted 2 | . 2 . . . Recyclers Shooed 1 | . . . 1 . Parts Field Recycled . | . . . . . Retrieved Matter . | . . . . . Parts Self-Destructed 12 | . . 12 . . Prevented . | . . . . . Kills | -11 -10 -10 -9 -9 ------- Run | Yrd Mat Sub Rec Scr Combat Hostiles Destroyed 28 | . 20 6 2 . Guns 15 | . 11 2 2 . Cannons 10 | . 9 1 . . AOE 3 | . . 3 . . Classes Destroyed 10 | . 6 2 2 . Worker 1 | . 1 . . . Hauler 2 | . 2 . . . Recycler 2 | . . . 2 . Operator 4 | . 4 . . . Turret 2 | . . 2 . . Watcher 3 | . 3 . . . Swarmer 6 | . 3 3 . . Grunt 17 | . 17 . . . Sentry 2 | . . . 2 . Subdweller 3 | . . 3 . . Best Kill Streak 5 | . 4 5 3 . Combat Bots Only 3 | . 3 3 2 . Max Kills in Single Turn 3 | . 1 3 1 . Gunslinging . | . . . . . Exploded 3 | . . 3 . . Melee . | . . . . . Uniques/NPCs Destroyed . | . . . . . Combat | -11 -10 -10 -9 -9 -------- Run | Yrd Mat Sub Rec Scr Hostile Shots Fired 171 | . 104 32 10 25 Missed 48 | . 30 11 3 4 Damage Taken 1449 | . 798 266 111 274 Core 258 | . 122 19 32 85 Absorbed by Shields . | . . . . . Redirected to Shielding 76 | . 6 . . 70 Core Remaining (%) 100 | 100 . . . . Volleys Fired 99 | . 78 14 7 . Largest 2 | . 2 2 2 . Hottest 95 | . 95 95 80 . Shots Fired 193 | . 156 23 14 . Gun 113 | . 92 7 14 . Cannon 73 | . 64 9 . . Launcher 7 | . . 7 . . Special . | . . . . . Kinetic 169 | . 150 12 7 . Thermal 20 | . 6 7 7 . Explosive 4 | . . 4 . . Electromagnetic . | . . . . . Robot Hit Streak 18 | . 12 18 7 . Robot Miss Streak 4 | . 4 . 1 . Penetration Max . | . . . . . Secondary Targets . | . . . . . Shots Hit Robots 119 | . 96 14 9 . Core Hits 55 | . 42 8 5 . Critical Kills . | . . . . . Critical Parts Destroyed . | . . . . . Critical Strikes 1 | . 1 . . . Blast 1 | . 1 . . . Melee Attacks 13 | . . . . 13 Impact 3 | . . . . 3 Slashing 10 | . . . . 10 Piercing . | . . . . . Sneak Attacks . | . . . . . Combat Hostiles . | . . . . . Follow-up Attacks . | . . . . . Damage Inflicted 2288 | . 1515 619 154 . Guns 993 | . 767 72 154 . Cannons 868 | . 748 120 . . Explosions 427 | . . 427 . . Melee . | . . . . . Ramming . | . . . . . Kinetic 2014 | . 1444 499 71 . Thermal 274 | . 71 120 83 . Explosive . | . . . . . Electromagnetic . | . . . . . Impact . | . . . . . Slashing . | . . . . . Piercing . | . . . . . Highest Corruption 1 | . 1 1 1 . Average Corruption 1 | . 1 1 1 . Corruption Purged . | . . . . . Corruption Blocked . | . . . . . Effects 39 | . 11 23 5 . Message Errors 9 | . 3 6 . . Matter Fused 6 | . 1 4 1 . Heat Flow Errors 8 | . 3 3 2 . Energy Discharges 6 | . 1 4 1 . Data Loss (minor) 7 | . 2 4 1 . Data Loss (major) 1 | . 1 . . . Misfires 2 | . . 2 . . Overload Shots . | . . . . . Overflow Damage 108 | . 24 84 . . Projectiles 24 | . 24 . . . Explosions 84 | . . 84 . . Melee . | . . . . . Knockbacks 10 | . 10 . . . Impact . | . . . . . Kinetic 10 | . 10 . . . Secondary . | . . . . . Self-Inflicted Damage 67 | . . 67 . . Shots 3 | . . 3 . . Rammed . | . . . . . Targets Rammed . | . . . . . Kicked . | . . . . . Crushed . | . . . . . Highest Temperature 252 | . 251 243 252 . Average Temperature 69 | . 56 119 89 . Received Heat Transfer 570 | . 411 96 27 36 Siege Activations . | . . . . . Robots Corrupted . | . . . . . Combat Hostiles . | . . . . . Parts Fried . | . . . . . Impact Corruptions . | . . . . . Robots Melted . | . . . . . Combat Hostiles . | . . . . . Parts Melted . | . . . . . Heat Transferred 507 | . 148 259 100 . Parts Sabotaged . | . . . . . Parts Stolen . | . . . . . Parts Stripped . | . . . . . Power Chain Reactions . | . . . . . Alert | -11 -10 -10 -9 -9 ------- Run | Yrd Mat Sub Rec Scr Peak Influence 348 | . 348 . 50 . Initial . | . . . . . Average 132 | . 184 . 6 . Maximum Alert Level 1 | . 1 . . . Low Security (%) 57 | 100 40 . 100 . Level 1 42 | . 59 . . . Level 2 . | . . . . . Level 3 . | . . . . . Level 4 . | . . . . . Level 5 . | . . . . . High Security . | . . . . . Max Security . | . . . . . Squads Dispatched 7 | . 7 . . . Investigation 4 | . 4 . . . Extermination . | . . . . . Reinforcement 3 | . 3 . . . Assault . | . . . . . Garrison . | . . . . . Intercept . | . . . . . Searches Triggered . | . . . . . Construction Impeded . | . . . . . Haulers Reinforced . | . . . . . Active Scanning Responses . | . . . . . Cargo Convoy Interrupts . | . . . . . Stealth | -11 -10 -10 -9 -9 --------- Run | Yrd Mat Sub Rec Scr Distress Signals 1 | . 1 . . . Communications Jammed . | . . . . . Distress Signals . | . . . . . Times Spotted 47 | . 30 8 2 7 Peak Tracking Total 11 | . 6 5 2 11 Tactical Retreats 4 | . 2 1 . 1 Traps | -11 -10 -10 -9 -9 ------- Run | Yrd Mat Sub Rec Scr Traps Triggered 3 | . 3 . . . Indirectly . | . . . . . Trap Hack Attempts . | . . . . . Triggered . | . . . . . Disarmed . | . . . . . Reprogrammed . | . . . . . Reused . | . . . . . Traps Extracted . | . . . . . Installed . | . . . . . Triggered . | . . . . . Machines | -11 -10 -10 -9 -9 ---------- Run | Yrd Mat Sub Rec Scr Machines Disabled 7 | . 1 4 . 2 Max in Single Turn 3 | . 1 3 . 1 Machines Repaired . | . . . . . Machines Dismantled . | . . . . . Machines Sabotaged . | . . . . . Overloaded Fab Kills . | . . . . . Hacking | -11 -10 -10 -9 -9 --------- Run | Yrd Mat Sub Rec Scr Machines Accessed 9 | . 6 1 . 2 Terminals 5 | . 5 . . . Fabricators . | . . . . . Repair Stations . | . . . . . Recycling Units 1 | . 1 . . . Scanalyzers . | . . . . . Garrison Access . | . . . . . Total Hacks 27 | . 18 4 . 5 Successful 17 | . 8 4 . 5 Failed 10 | . 10 . . . Catastrophic 2 | . 2 . . . Database Lockouts . | . . . . . Manual 16 | . 16 . . . Terminals 16 | . 16 . . . Fabricators . | . . . . . Repair Stations . | . . . . . Recycling Units 2 | . 2 . . . Scanalyzers . | . . . . . Garrison Access . | . . . . . Terminal Hacks 10 | . 1 4 . 5 Record 8 | . . 4 . 4 Robot Analysis 1 | . 1 . . . Derelict Proto ID Bank 1 | . . . . 1 Fabricator Hacks . | . . . . . Repair Station Hacks . | . . . . . Recycling Unit Hacks . | . . . . . Scanalyzer . | . . . . . Garrison Access Hacks . | . . . . . Unauthorized Hacks 7 | . 7 . . . Terminals 7 | . 7 . . . Botnet 1 | . 1 . . . Operators 1 | . 1 . . . Skim 5 | . 5 . . . Fabricators . | . . . . . Repair Stations . | . . . . . Recycling Units . | . . . . . Scanalyzers . | . . . . . Garrison Access . | . . . . . Data Cores Recovered 1 | . 1 . . . Used . | . . . . . Hacking Detections 6 | . 6 . . . Full Trace Events 1 | . 1 . . . Feedback Events 1 | . 1 . . . Corruption 1 | . 1 . . . Feedback Blocked . | . . . . . Robot Schematics Acquired . | . . . . . Robots Built . | . . . . . Authchips . | . . . . . Time . | . . . . . Total Robot Build Rating . | . . . . . Part Schematics Acquired . | . . . . . Parts Built . | . . . . . Authchips . | . . . . . Time . | . . . . . Total Part Build Rating . | . . . . . Parts Repaired . | . . . . . Time . | . . . . . Parts Recycled . | . . . . . Recycled Matter . | . . . . . Retrieved Matter . | . . . . . Retrieved Components . | . . . . . Parts Scanalyzed . | . . . . . Part Schematics Acquired . | . . . . . Parts Damaged . | . . . . . Bothacking | -11 -10 -10 -9 -9 ------------ Run | Yrd Mat Sub Rec Scr Used RIF Installer . | . . . . . Robots Hacked . | . . . . . Non-combat . | . . . . . Combat . | . . . . . Robot Hacks Applied . | . . . . . Relay Couplers Released . | . . . . . Fabnet Peak Effective % . | . . . . . Robots Rewired . | . . . . . Allies Hacked . | . . . . . Hacks Repelled . | . . . . . Allies | -11 -10 -10 -9 -9 -------- Run | Yrd Mat Sub Rec Scr Total Allies . | . . . . . Largest Group . | . . . . . Highest-Rated Group . | . . . . . Highest-Rated Ally . | . . . . . Total Orders . | . . . . . Ally Attacks . | . . . . . Total Damage . | . . . . . Kills . | . . . . . Allies Corrupted . | . . . . . Allies Melted . | . . . . . Intel | -11 -10 -10 -9 -9 ------- Run | Yrd Mat Sub Rec Scr Robot Analysis Total 1 | . 1 . . . Derelict Logs Recovered 6 | . . 1 . 5 Drone Launches . | . . . . . Drone Recoveries . | . . . . . Exploration | -11 -10 -10 -9 -9 ------------- Run | Yrd Mat Sub Rec Scr Turns Passed 9568 | 70 1832 3661 679 3326 Spaces Moved 3330 | 41 718 1031 126 1414 Core 5 | 5 . . . . Treads 1859 | 36 718 1031 74 . Legs . | . . . . . Wheels 1369 | . . . 52 1317 Hover 97 | . . . . 97 Flight . | . . . . . Fastest Speed 50 | 50 160 240 380 116 Average Speed 270 | 146 211 344 521 227 Slowest Speed 960 | 160 240 560 960 956 Overloaded Moves . | . . . . . Propulsion Burnouts . | . . . . . Robots Hopped . | . . . . . Cave-ins Triggered . | . . . . . Exploration Rate (%) 50 | 4 92 40 28 89 Regions Visited 4 Branch Regions 3 Pre-discovered Areas 2 | . 1 1 . . Known Exits Taken 1 | . 1 . . . Unknown Exits Taken 3 | 1 . 1 1 . Scrap Searched 4 | . . . . 4 Spaces Dug 16 | . . 5 . 11 Terrain Destroyed 47 | . . 36 . 11 Melee 11 | . . . . 11 Projectile . | . . . . . AOE 36 | . . 36 . . Terrain Rammed . | . . . . . Walls Destroyed . | . . . . . Machines Disabled . | . . . . . Actions | -11 -10 -10 -9 -9 --------- Run | Yrd Mat Sub Rec Scr Total 3703 | 48 884 1120 136 1515 Wait 68 | . 37 31 . . Move 3326 | 40 717 1030 125 1414 Hop . | . . . . . Pick Up 93 | 2 27 29 . 35 Fast Attach 19 | 6 5 1 1 6 Attach 4 | . 2 1 . 1 Detach 2 | . 1 . 1 . Swap 19 | . 3 6 2 8 Drop 60 | . 14 8 . 38 Fire 99 | . 78 14 7 . Melee 13 | . . . . 13 Ram . | . . . . . Kick . | . . . . . Crush . | . . . . . Escape Stasis . | . . . . . Rewire . | . . . . . Trap . | . . . . . Miscellaneous . | . . . . . Route ------- -11/Scrapyard -10/Materials (discovered 5 exits: [*Mat x3] / [*Min] / *Sub) -10/Subcaves (discovered 2 exits: [*Mat] / [*Rec]) -9/Recycling -9/Scraptown (discovered 1 exit: [*Fac]) History --------- Turn | Location | Event 5 | -11/Scrapyard | Discovered new exit (range 14) 71 | -11/Scrapyard | Entered Materials 264 | -10/Materials | Discovered new exit (range 8) 306 | -10/Materials | Build established: Mutant 483 | -10/Materials | Discovered new exit (range 12) 1388 | -10/Materials | Discovered new exit (range 13) 1631 | -10/Materials | Discovered new exit (range 14) 1752 | -10/Materials | Loaded intel: 8 trap records 1766 | -10/Materials | Learned 2 Storage zone layouts 1781 | -10/Materials | Identified exit to Subcaves 1781 | -10/Materials | Learned location of 1 exit from Materials 1807 | -10/Materials | Learned 4 Recycling zone layouts 1903 | -10/Materials | Entered Subcaves 1906 | -10/Subcaves | Learned location of Zion (-6) 2004 | -10/Subcaves | Shifting Twisted Machinery released Flamer 2519 | -10/Subcaves | Discovered new exit (range 9) 2529 | -10/Subcaves | Shifting Twisted Machinery released Sub. Shrapnel Launcher 2630 | -10/Subcaves | Core integrity fell below 50% 2641 | -10/Subcaves | Discovered new exit (range 15) 3290 | -10/Subcaves | Shifting Twisted Machinery released Sub. Laser 3297 | -10/Subcaves | A swath of the cavern ceiling suddenly collapsed 3913 | -10/Subcaves | Build established: Hauler-Mutant 4953 | -10/Subcaves | Visited Clippyterm 5564 | -10/Subcaves | Entered Recycling 6150 | -9/Recycling | Scanned before Scraplab entrance 6205 | -9/Recycling | Entered Scraplab 6236 | -9/Recycling | Discovered new exit (range 3) 6243 | -9/Recycling | Entered Scraptown 6243 | -9/Scraptown | System corruption cleaned by C-Scrubber 6528 | -9/Scraptown | Scanned Subdweller tech in exchange for log data 6536 | -9/Scraptown | Learned location of 1 exit from Lower Caves 6540 | -9/Scraptown | Learned Research stockpile data 6544 | -9/Scraptown | Learned Factory security intel 6547 | -9/Scraptown | Learned location of 1 exit from Factory 6551 | -9/Scraptown | Learned Research machine intel 6661 | -9/Scraptown | Visited Shadow of the Wyrm 6703 | -9/Scraptown | Visited Cave Peace 6734 | -9/Scraptown | Visited SPCMW 6817 | -9/Scraptown | Visited Science Testing Area 6889 | -9/Scraptown | Visited UFD Registry 6889 | -9/Scraptown | Registered with UFD as "Hardsplitter" 6916 | -9/Scraptown | Visited Spacefarers 7045 | -9/Scraptown | Visited IN-MT5's Study 7891 | -9/Scraptown | Discovered new exit (range 11) 8102 | -9/Scraptown | Visited A0-MCA Data Center 8113 | -9/Scraptown | Given a B+ rating by A0-MCA 8117 | -9/Scraptown | Found A0-MCA's Component Scanner 8150 | -9/Scraptown | Visited Science Guys 8209 | -9/Scraptown | Visited Derelict Rescue Squad 8220 | -9/Scraptown | Found DRS Beacon 8429 | -9/Scraptown | Visited Curators Association 8487 | -9/Scraptown | Visited Infowarlord's Domain 8501 | -9/Scraptown | Found Exp. Sensor Array 8597 | -9/Scraptown | Visited Abandonware Association 8617 | -9/Scraptown | Learned abandonware demo "REVENGE.EXE" 8653 | -9/Scraptown | Visited Cartography Club 8690 | -9/Scraptown | Visited Junk Repository 8770 | -9/Scraptown | Visited Junk Repository 8836 | -9/Scraptown | Visited Observation Area 9463 | -9/Scraptown | Attacked by Scraptown defenders 9468 | -9/Scraptown | Found Siege Cannon Replica 9488 | -9/Scraptown | Found DM-GVY's Chainsaw 9557 | -9/Scraptown | Core integrity fell below 20% 9569 | -9/Scraptown | Destroyed by VT-L1Z(j) with Overtuned Pulse Rifle Last Messages --------------- Acquired Grenade Launcher. Enclosure breached. ANNOUNCEMENT: Intruder alert! Defend Scraptown! Acquired Siege Cannon Replica. Enclosure breached. Autobeam Turret pops up from the ground. Dropped Power Maul. Acquired DM-GVY's Chainsaw. The unstable cave ceiling collapses. Penetrated by Bolt. Grenade Launcher destroyed. ANNOUNCEMENT: Triborg tracking relay activated. Stay clear or you only have yourself to blame! Penetrated by Slug. Bolt penetrates Wall. VT-L1Z(j): "Prepare to be scrapped, Hardsplitter!" Penetrated by Bolt. Imp. Propulsion Shielding destroyed. Imp. Hover Unit destroyed. Map ----- +----------------------------------------------------+ | | | ?????????????????????????????????????????????????? | | ?????????????????????????????????????????????????? | | ?????????????????????????????????????????????????? | | ?????????????????????????????????????????????????? | | ?????????????????????????????????????????????????? | | ?????????????????????????????????????????????????? | | ?????????????????????????????????????????????????? | | ?????????????????????????????????????????????????? | | ?????????????????????????????????????????????????? | | ?????????????????????????????????????????????????? | | ?????????????????????????????????????????????????? | | ?????????????????????????????????????????????????? | | ?????????????????????????????????????????????????? | | ??###################???####?????????????????????? | | ??"""##"""##""|##"""#??## ##????????#???????????? | | ?#"" ##""!##"" ##!!"#### ###### ##??????????? | | ?#"" #??????????? | | ?# #??????????? | | ?####################### ##########???????????? | | ???????????????????????## ##????????????????????? | | ????????????????????????# #?????????????????????? | | ????????????????????????# #?????????????????????? | | ????????????????????????# #?????????????????????? | | ????????????????????????# #?????????????????????? | | #???????????????????????#@h#???###???????????????? | | #???????????????????????# #??# ????????????????? | | #?###########?########### #? ?????????????????? | | #?#![#]!!#= #?# #![ #=!# ## #????#?????????????? | | #?#][# !/# !#?#= # # #hj# ???? #?????????????? | | #?# # # !#?# # # # ;###### ######????????? | | #?# #?# # # #????????? | | #?# #?# # # #????????? | | #?##### #####?##### ##### ## #"#########????????? | | ####### ########### ##### ## ##"##########??????? | | """"""" """"""""""" """"" "" "## "#??????? | | "## ""#??????? | | "## """" "#??????? | | "## "### "#??????? | | "## "#X ""#??????? | | "### "#??????? | | """"""""""""""""""""""""" "## """" "#??????? | | """"""""""""""""""""""""" "## ""#??????? | | ##### ################"" "## "#??????? | | ? #?????????#"" "###"########??????? | | X"?????????#"" "## ##?????????????? | | "" "" ##????????#"" "###"#######???????? | | "" "" X"#??????###"" "## ! #???????? | | " " ######### #"" "## #???????? | | "" #???????? | +----------------------------------------------------+ Best States ------------- Heat Dissipation 25 Energy Generation 18 Energy Capacity 300 Matter Stores 300 Matter Capacity 300 Sight Range 16 Terrain Scan Density 10 Armor Coverage 150 Propulsion Shielding 66 Utility Shielding 33 Evasion (%) 40 Recoil Reduction 2 Item Schematics ----------------- None Robot Schematics ------------------ None Fabricated ------------ Nothing Alien Tech Used ----------------- None Achievements -------------- None Challenges ------------ None Game ------ Seed IonAngularMaul Manual? 0 Play Time 00:31:24 Cumulative 562.8 hours Start 2024.08.14 @ 18:08:12 End 2024.08.14 @ 18:38:32 Sessions 5 Manual Loads 0 Difficulty Rogue Special Mode None Game No. 331 Rogue 331 Adventurer 0 Explorer 0 Win Type - Total 36 Types 22/2/4/3/1/1/1/1/1 Lore% 97 Gallery% 98 Achievement% 98 Wizard Run 0 Options --------- Layout 1 ASCII 0 Keyboard 0 Movement Numpad Keybinds 0 Fullscreen 1 Font 24/Smallcaps Map View 50x35 Zoom Use 0% Tactical HUD 1 Map Filters NONE Filters NONE Steam 1 RUN: 92f3df3d-427a-49c3-9f96-6aa3a96c9a0d